lending/lending_fUSD_20240111
["ID","MTS","AMOUNT","RATE_DAILY","PERIOD"]
[311183331,1704973846782,-500.0,0.00039178,4]
[311183332,1704973846793,-500.0,0.00039178,4]
[311183333,1704973846803,-500.0,0.00039178,4]
[311183334,1704973846813,-500.0,0.00039178,4]
[311183335,1704973846823,-500.0,0.00039178,4]
[311183336,1704973846833,-500.0,0.00039178,4]
[311183337,1704973846844,-233.12712886,0.00039178,4]
[311183338,1704973846854,-500.0,0.00039178,4]
[311183339,1704973846864,-500.0,0.00039178,4]
[311183340,1704973846873,-500.0,0.00039178,4]
[311183341,1704973846882,-559.32026386,0.00039178,4]
[311183342,1704973846892,-500.0,0.00039178,4]
[311183343,1704973846902,-500.0,0.00039178,4]
[311183344,1704973846912,-500.0,0.00039178,4]
[311183345,1704973846922,-500.0,0.00039178,4]
[311183346,1704973846931,-500.0,0.00039178,4]
[311183347,1704973846941,-500.0,0.00039178,4]
[311183348,1704973846952,-500.0,0.00039178,4]
[311183349,1704973846961,-500.0,0.00039178,4]
[311183350,1704973846970,-500.0,0.00039178,4]
[311183351,1704973846979,-500.0,0.00039178,4]
[311183352,1704973846988,-500.0,0.00039178,4]
[311183353,1704973846998,-156.75228867,0.00039178,4]
[311183354,1704973847014,-343.24771133,0.00039178,4]
[311183355,1704973847023,-500.0,0.00039178,4]
[311183356,1704973847033,-500.0,0.00039178,4]
[311183357,1704973847043,-500.0,0.00039178,2]
[311183358,1704973847053,-500.0,0.00039178,4]
[311183359,1704973847062,-500.0,0.00039178,4]
[311183360,1704973847072,-530.72723552,0.00039178,4]
[311183361,1704973847082,-500.0,0.00039178,4]
[311183362,1704973847091,-500.0,0.00039178,4]
[311183363,1704973847102,-500.0,0.00039178,4]
[311183364,1704973847111,-500.0,0.00039178,4]
[311183365,1704973847120,-500.0,0.00039178,4]
[311183366,1704973847130,-500.0,0.00039178,4]
[311183367,1704973847139,-500.0,0.00039178,4]
[311183368,1704973847148,-500.0,0.00039178,4]
[311183369,1704973847158,-500.0,0.00039178,4]
[311183370,1704973847168,-500.0,0.00039178,4]
[311183371,1704973847178,-199.06320756,0.00039178,4]
[311183372,1704973847188,-500.0,0.00039178,4]
[311183373,1704973847198,-500.0,0.00039178,4]
[311183374,1704973847210,-500.0,0.00039178,4]
[311183375,1704973847220,-500.0,0.00039178,4]
[311183376,1704973847230,-500.0,0.00039178,4]
[311183377,1704973847241,-500.0,0.00039178,4]
[311183378,1704973847252,-512.17474702,0.00039178,4]
[311183379,1704973847261,-500.0,0.00039178,4]
[311183380,1704973847271,-500.0,0.00039178,4]
[311183381,1704973847280,-500.0,0.00039178,4]
[311183382,1704973847290,-500.0,0.00039178,4]
[311183383,1704973847299,-500.0,0.00039178,4]
[311183384,1704973847309,-351.46803177,0.00039178,4]
[311183385,1704973847319,-500.0,0.00039178,4]
[311183386,1704973847329,-189.60204333,0.00039178,4]
[311183387,1704973847338,-500.0,0.00039178,4]
[311183388,1704973847348,-500.0,0.00039178,4]
[311183389,1704973847358,-500.0,0.00039178,4]
[311183390,1704973847367,-500.0,0.00039178,4]
[311183391,1704973847377,-506.42473649,0.00039178,4]
[311183392,1704973847386,-500.0,0.00039178,4]
[311183393,1704973847395,-500.0,0.00039178,4]
[311183394,1704973847404,-500.0,0.00039178,4]
[311183395,1704973847413,-500.0,0.00039178,4]
[311183396,1704973847423,-500.0,0.00039178,4]
[311183397,1704973847432,-500.0,0.00039178,4]
[311183398,1704973847441,-508.01838918,0.00039178,4]
[311183399,1704973847452,-500.0,0.00039178,4]
[311183400,1704973847461,-500.0,0.00039178,4]
[311183401,1704973847470,-500.0,0.00039178,4]
[311183402,1704973847479,-355.1718978,0.00039178,4]
[311183403,1704973847497,-144.8281022,0.00039178,4]
[311183404,1704973847506,-330.0145558,0.00039178,4]
[311183405,1704973847517,-500.0,0.00039178,4]
[311183406,1704973847603,-213.73630601,0.00039178,4]
[311183407,1704973847616,-286.26369399,0.00039178,4]
[311183408,1704973847625,-500.0,0.00039178,4]
[311183409,1704973847634,-500.0,0.00039178,4]
[311183410,1704973847643,-500.0,0.00039178,4]
[311183411,1704973847652,-233.73630601,0.00039178,4]
[311183412,1704973847673,-266.26369399,0.00039178,4]
[311183413,1704973847682,-73.39980962,0.00039178,4]
[311183414,1704973855772,6224.11,0.00035,2]
[311183416,1704973862271,243.46254462,0.000274,2]
[311183417,1704973869985,360239.57567512,0.00023,2]
[311183418,1704973870009,345.38444361,0.00023,2]
[311183419,1704973870033,259.2491917,0.00023,2]
[311183420,1704973870055,248.57,0.00023,2]
[311183421,1704973870079,300.0,0.00023,2]
[311183422,1704973870107,180000.0,0.00023,2]
[311183423,1704973870133,200000.0,0.00023,2]
[311183424,1704973870162,77250.0,0.00023,2]
[311183425,1704973870193,7544.4441289,0.00023,2]
[311183426,1704973870313,7544.4441289,0.00023,2]
[311183427,1704973870345,7544.4441289,0.00023,2]
[311183428,1704973870369,7544.4441289,0.00023,2]
[311183429,1704973870392,574368.38404174,0.00023,2]
[311183433,1704973913223,455.66,0.0003,30]
[311183446,1704973958535,1152.01939269,0.0003,60]
[311183457,1704974029706,7544.4441289,0.00023,2]
[311183458,1704974029731,7544.4441289,0.00023,2]
[311183459,1704974029755,7544.4441289,0.00023,2]
[311183460,1704974029779,7544.4441289,0.00023,2]
[311183461,1704974029802,7544.4441289,0.00023,2]
[311183462,1704974029825,7544.4441289,0.00023,2]
[311183463,1704974029849,7544.4441289,0.00023,2]
[311183464,1704974029872,135184.27277804,0.00023,2]
[311183501,1704974402482,291.88756286,0.00023,2]
[311183527,1704974696936,350.0,0.00025,3]
[311183533,1704974764614,18914.28737435,0.00023,2]
[311183535,1704974772238,6047.6831571,0.00023,2]
[311183536,1704974772278,403.01817968,0.0002231,2]
[311183537,1704974772912,7410.66381965,0.00025,2]
[311183538,1704974774170,1597.4364392,0.0002,2]
[311183539,1704974783361,1890.29828009,0.00025,2]
[311183540,1704974785228,5215.89409189,0.00025,2]
[311183541,1704974788443,185.92325715,0.00023836,2]
[311183543,1704974790650,310.25020889,0.0002425,2]
[311183544,1704974791271,15680.19062212,0.00025,2]
[311183545,1704974792928,2902.78255182,0.00025,2]
[311183546,1704974794155,1598.59492372,0.0002,2]
[311183548,1704974807334,1890.29828009,0.00025,2]
[311183549,1704974811514,15680.19062212,0.00025,2]
[311183551,1704974825327,1891.70798367,0.0002,2]
[311183552,1704974826097,-155.0,0.00026998,2]
[311183553,1704974826118,-400.0,0.00027,3]
[311183554,1704974826138,-251.37315364,0.00028799,2]
[311183555,1704974826158,-109.49032065,0.000288,2]
[311183556,1704974829319,9653.10570071,0.0002,2]
[311183558,1704974847338,1847.52177158,0.0002,2]
[311183559,1704974849259,3942.4757622,0.0002,2]
[311183568,1704974964105,-150.0,0.00028656,2]
[311183569,1704974964125,-287.26990936,0.00028656,2]
[311183570,1704974964147,-150.66043596,0.00028771,2]
[311183571,1704974964171,-3186.46864652,0.00028797,2]
[311183572,1704974964192,-279.72837653,0.00028797,2]
[311183573,1704974964214,-155.0,0.00028797,2]
[311183574,1704974964234,-196.45843195,0.00028798,2]
[311183575,1704974964255,-141.88283299,0.000288,2]
[311183576,1704974964275,-150.97967695,0.000288,2]
[311183577,1704974964298,-450.0,0.00029,3]
[311183578,1704974964321,-152.61705469,0.00029698,2]
[311183579,1704974964341,-251.37315364,0.00029698,2]
[311183580,1704974964360,-283.77089221,0.00029796,2]
[311183581,1704974964382,-12008.90096215,0.00029797,2]
[311183582,1704974965084,-3045.37245882,0.00029797,2]
[311183584,1704974967084,-6132.87256575,0.00029797,2]
[311183585,1704974967105,-6951.55076949,0.00029798,2]
[311183586,1704974967125,-6622.88393904,0.000298,2]
[311183587,1704974968289,-5309.12828879,0.000298,2]
[311183611,1704975031941,-196.02311954,0.00029799,2]
[311183612,1704975031950,-90.4987284,0.000298,2]
[311183613,1704975031962,-6495.59019396,0.000298,2]
[311183614,1704975033267,-423.42499971,0.000298,2]
[311183615,1704975033310,-914.81508299,0.000298,2]
[311183616,1704975033368,-3458.45213025,0.000298,2]
[311183617,1704975033428,-1320.04532024,0.000298,2]
[311183618,1704975033442,-1272.92017302,0.000298,2]
[311183619,1704975033453,-664.2,0.000298,2]
[311183620,1704975033464,-2345.3935,0.000298,2]
[311183621,1704975033486,-3500.05378479,0.000298,2]
[311183622,1704975033903,-940.3303932,0.000298,2]
[311183623,1704975033914,-553.32244,0.000298,2]
[311183624,1704975033926,-654.5072355,0.000298,2]
[311183645,1704975037961,-399.71253246,0.000298,2]
[311183646,1704975037972,-523.55681014,0.000298,2]
[311183647,1704975037983,-537.8831543,0.000298,2]
[311183648,1704975038018,-571.63957626,0.000298,2]
[311183649,1704975038088,-3177.99664968,0.000298,2]
[311183650,1704975038252,-19078.3771062,0.000298,2]
[311183651,1704975038262,-152.61705452,0.00030218,2]
[311183652,1704975038272,-152.61705452,0.00030738,2]
[311183653,1704975038281,-152.61705452,0.00031258,2]
[311183654,1704975038291,-467.94,0.00031382,2]
[311183655,1704975038300,-152.61705452,0.00031778,2]
[311183656,1704975038310,-2085.47568438,0.00032,2]
[311183657,1704975038319,-3658.61,0.000321,2]
[311183658,1704975038329,-152.61705452,0.00032298,2]
[311183659,1704975038338,-152.61705452,0.00032818,2]
[311183660,1704975038349,-177.91,0.00032881,2]
[311183661,1704975038358,-1595.13,0.00033046,2]
[311183662,1704975038368,-5177.35,0.00033064,2]
[311183663,1704975038377,-889.91,0.00033064,2]
[311183664,1704975038387,-201.56,0.00033141,120]
[311183665,1704975038396,-174.38,0.00033225,2]
[311183666,1704975038406,-250.0,0.00033249,2]
[311183667,1704975038416,-200.0,0.00033256,2]
[311183669,1704975038433,-2000.0,0.0003328,2]
[311183671,1704975038447,-153.46,0.00033296,2]
[311183673,1704975038457,-571.75,0.00033323,2]
[311183675,1704975038467,-240.49000621,0.00033335,4]
[311183677,1704975038476,-684.7,0.00033336,2]
[311183679,1704975038485,-152.61705452,0.00033338,2]
[311183681,1704975038494,-250.0,0.00033339,111]
[311183683,1704975038503,-388.35,0.00033368,2]
[311183685,1704975038513,-574.39,0.00033416,15]
[311183687,1704975038523,-388.35,0.00033459,2]
[311183688,1704975038533,-5000.0,0.000335,15]
[311183689,1704975038542,-388.35,0.00033551,2]
[311183690,1704975038552,-1361.32,0.00033555,2]
[311183691,1704975038561,-153.32,0.00033582,2]
[311183692,1704975038571,-388.35,0.00033643,2]
[311183693,1704975038580,-467.94,0.00033645,2]
[311183694,1704975038590,-205.0,0.00033688,2]
[311183695,1704975038599,-388.35,0.00033734,2]
[311183696,1704975038608,-388.35,0.00033826,2]
[311183697,1704975038618,-152.61705452,0.00033858,2]
[311183698,1704975038627,-153.32,0.00033915,2]
[311183699,1704975038637,-388.35,0.00033917,2]
[311183700,1704975038646,-318.74,0.0003399,10]
[311183701,1704975038655,-265.61,0.0003399,10]
[311183702,1704975038664,-1000.0,0.00034,4]
[311183703,1704975038674,-30032.26587517,0.00034,2]
[311183704,1704975038688,-951.26132272,0.00034,2]
[311183705,1704975038702,-176.89015718,0.00034,2]
[311183706,1704975038712,-7284.37,0.00034,2]
[311183707,1704975038721,-388.35,0.00034009,2]
[311183709,1704975038730,-388.35,0.000341,2]
[311183710,1704975038740,-388.35,0.00034192,2]
[311183711,1704975038749,-2038.0,0.000342,3]
[311183712,1704975038758,-153.32,0.00034247,2]
[311183713,1704975038768,-388.35,0.00034283,2]
[311183714,1704975038777,-571.75,0.00034301,2]
[311183715,1704975038787,-388.35,0.00034375,2]
[311183716,1704975038799,-152.61705452,0.00034378,2]
[311183717,1704975038809,-152.67,0.0003443,2]
[311183718,1704975038818,-1146.68,0.0003446,2]
[311183719,1704975038828,-388.35,0.00034466,2]
[311183720,1704975038837,-237.57,0.00034476,120]
[311183721,1704975038846,-703.153445,0.0003452,2]
[311183722,1704975038856,-641.061673,0.0003452,2]
[311183723,1704975038865,-388.35,0.00034558,2]
[311183724,1704975038874,-153.32,0.0003458,2]
[311183725,1704975038884,-1000.0,0.00034598,2]
[311183726,1704975038893,-388.35,0.00034649,2]
[311183727,1704975038902,-1245.56,0.00034654,2]
[311183728,1704975038911,-31022.12489226,0.0003468,30]
[311183729,1704975038921,-388.35,0.00034741,2]
[311183730,1704975038930,-17410.41943406,0.00034777,2]
[311183731,1704975038945,-1054.730168,0.00034794,2]
[311183732,1704975038954,-961.592509,0.00034794,2]
[311183733,1704975038964,-388.35,0.00034832,2]
[311183734,1704975038973,-152.61705452,0.00034898,2]
[311183735,1704975038983,-153.32,0.00034912,2]
[311183736,1704975038992,-388.35,0.00034924,2]
[311183737,1704975039001,-1406.306891,0.00034931,2]
[311183738,1704975039011,-1282.123346,0.00034931,2]
[311183739,1704975039020,-625.54916618,0.00035,3]
[311183740,1704975039029,-9428.76531599,0.00035,2]
[311183741,1704975039038,-388.35,0.00035015,2]
[311183742,1704975039048,-1757.883614,0.00035068,2]
[311183743,1704975039058,-1602.654183,0.00035068,2]
[311183744,1704975039071,-388.35,0.00035107,2]
[311183745,1704975039081,-153.32,0.00035245,2]
[311183746,1704975039091,-571.75,0.0003528,2]
[311183747,1704975039101,-152.67,0.0003529,2]
[311183748,1704975039110,-2461.037059,0.00035342,2]
[311183749,1704975039121,-2243.715856,0.00035342,2]
[311183750,1704975039352,-152.61705452,0.00035418,2]
[311183751,1704975039362,-153.46,0.00035516,2]
[311183752,1704975039372,-151.0,0.00035557,120]
[311183753,1704975039381,-153.32,0.00035577,2]
[311183754,1704975039390,-151.53,0.00035616,2]
[311183755,1704975039400,-50002.20555051,0.00035902,11]
[311183756,1704975039409,-3452.03006757,0.00035902,10]
[311183757,1704975039418,-467.94,0.00035909,2]
[311183758,1704975039427,-153.32,0.0003591,2]
[311183759,1704975039436,-25074.04045908,0.00035935,10]
[311183760,1704975039448,-152.61705452,0.00035938,2]
[311183761,1704975039458,-8500.32,0.00036,2]
[311183762,1704975039467,-8168.00717285,0.00036,2]
[311183763,1704975039476,-6186.85911953,0.00036,4]
[311183764,1704975039486,-152.67,0.00036151,2]
[311183765,1704975039495,-153.32,0.00036242,2]
[311183766,1704975039504,-571.75,0.00036258,2]
[311183767,1704975039514,-15524.0,0.00036264,2]
[311183768,1704975039524,-151.0,0.00036283,30]
[311183769,1704975039534,-166.27425826,0.0003632,14]
[311183770,1704975039543,-205.0,0.0003632,7]
[311183771,1704975039556,-834.0,0.00036419,2]
[311183772,1704975039565,-152.61705452,0.00036458,2]
[311183773,1704975039575,-153.84,0.00036548,2]
[311183774,1704975039585,-174.38,0.00036548,2]
[311183775,1704975039595,-153.32,0.00036575,2]
[311183776,1704975039606,-180.0,0.00036673,2]
[311183777,1704975039618,-150.31,0.0003679,2]
[311183778,1704975039628,-36805.51280857,0.000368,30]
[311183779,1704975039638,-90655.11153383,0.000368,3]
[311183780,1704975039647,-250.1942891,0.000368,9]
[311183781,1704975039657,-176.05,0.000369,2]
[311183782,1704975039667,-812.08455662,0.000369,2]
[311183783,1704975039677,-1956.9,0.000369,30]
[311183785,1704975039687,-1956.9,0.000369,2]
[311183786,1704975039697,-5032.08,0.000369,30]
[311183788,1704975039706,-5032.08,0.000369,2]
[311183789,1704975039715,-153.32,0.00036907,2]
[311183790,1704975039724,-309.8953966,0.00036912,2]
[311183791,1704975039733,-1852.34745443,0.00036912,2]
[311183793,1704975039743,-152.61705452,0.00036978,2]
[311183794,1704975039752,-221.71463965,0.0003699,2]
[311183795,1704975039761,-150.31,0.0003699,2]
[311183796,1704975039770,-156.97116274,0.00036997,2]
[311183797,1704975039779,-393843.21112911,0.00037,2]
[311183798,1704975039788,-152.67,0.00037012,2]
[311183799,1704975039797,-151.0,0.00037023,7]
[311183800,1704975039806,-2048.0,0.00037078,5]
[311183801,1704975039814,-315.465,0.00037099,2]
[311183802,1704975039823,-5366.16494221,0.00037107,8]
[311183803,1704975039833,-574.39,0.00037152,15]
[311183804,1704975039842,-1275.5003739,0.000372,10]
[311183805,1704975039852,-178.16,0.0003721,2]
[311183806,1704975039861,-571.75,0.00037237,2]
[311183807,1704975039870,-153.32,0.0003724,2]
[311183808,1704975039879,-548.52833111,0.00037271,10]
[311183809,1704975039888,-176.05,0.00037448,2]
[311183810,1704975039897,-162.96,0.0003748,2]
[311183811,1704975039907,-152.61705452,0.00037498,2]
[311183812,1704975039916,-8823.0,0.000375,30]
[311183813,1704975039925,-309.89539658,0.00037522,2]
[311183814,1704975039934,-191.81915141,0.00037533,2]
[311183815,1704975039943,-153.32,0.00037572,2]
[311183816,1704975039953,-326.6572,0.00037637,2]
[311183817,1704975039962,-153.84,0.00037655,2]
[311183818,1704975039971,-159.79,0.000377,3]
[311183819,1704975039980,-159.79,0.000377,3]
[311183820,1704975039989,-159.79,0.000377,3]
[311183821,1704975039998,-153.46,0.00037736,2]
[311183822,1704975040008,-26046.5536,0.00037737,2]
[311183823,1704975040018,-151.0,0.00037779,4]
[311183824,1704975040027,-290.0,0.000378,2]
[311183825,1704975040036,-2717.47406684,0.000378,2]
[311183826,1704975040045,-500.0,0.000378,2]
[311183827,1704975040055,-6024.80989414,0.00037802,11]
[311183828,1704975040064,-150.20645868,0.00037802,2]
[311183829,1704975040074,-1225.87333661,0.00037834,2]
[311183830,1704975040083,-406.27948893,0.00037834,4]
[311183831,1704975040093,-155.0,0.00037835,2]
[311183832,1704975040103,-247.17935471,0.00037836,4]
[311183833,1704975040113,-6424.50229347,0.00037836,2]
[311183834,1704975040123,-246.0,0.00037837,2]
[311183835,1704975040133,-151.53,0.00037842,2]
[311183836,1704975040142,-152.67,0.00037873,2]
[311183837,1704975040152,-1948.36832333,0.00037887,8]
[311183838,1704975040161,-670.62478432,0.00037887,8]
[311183839,1704975040170,-1000.0,0.00037887,10]
[311183840,1704975040180,-1994.19985873,0.00037887,8]
[311183841,1704975040189,-450.99019224,0.00037887,8]
[311183842,1704975040201,-672.41474468,0.00037887,8]
[311183843,1704975040219,-1000.0,0.00037887,10]
[311183844,1704975040231,-1000.0,0.00037887,10]
[311183845,1704975040242,-150.31,0.0003789,2]
[311183846,1704975040252,-6756.88326262,0.000379,2]
[311183847,1704975040279,-743.11673738,0.000379,2]
[311183848,1704975040289,-4592.56349389,0.000379,2]
[311183865,1704975041305,-221.35,0.0003399,10]
[311183866,1704975041314,-74782.48944044,0.000379,2]
[311183869,1704975041326,-16170.40291107,0.000379,2]
[311183871,1704975041335,-870.78937107,0.00037902,4]
[311183872,1704975041345,-153.32,0.00037905,2]
[311183873,1704975041354,-351.9,0.00037996,2]
[311183874,1704975041363,-3431.63150479,0.00038,4]
[311183876,1704975041372,-7321.80115527,0.00038,30]
[311183878,1704975041384,-2678.19884473,0.00038,30]
[311183879,1704975041393,-1131.90655809,0.00038,4]
[311183880,1704975041402,-183.0,0.00038,2]
[311183881,1704975041411,-156.25,0.00038001,2]
[311183882,1704975041421,-152.61705452,0.00038018,2]
[311183883,1704975041431,-309.89539658,0.00038132,2]
[311183884,1704975041440,-467.94,0.00038173,2]
[311183885,1704975041452,-6024.80989409,0.00038187,11]
[311183886,1704975041462,-230.08829952,0.000382,2]
[311183887,1704975041471,-150.56489272,0.000382,2]
[311183888,1704975041479,-571.75,0.00038215,2]
[311183889,1704975041489,-693.74379697,0.0003823,3]
[311183890,1704975041500,-502.23630303,0.0003823,3]
[311183891,1704975041509,-153.32,0.00038237,2]
[311183892,1704975041518,-777.40111,0.00038248,6]
[311183893,1704975041527,-150.2064584,0.00038307,2]
[311183894,1704975041537,-221.55945487,0.00038329,4]
[311183895,1704975041546,-29420.04792304,0.0003833,10]
[311183896,1704975041590,-22735.9795329,0.0003833,10]
[311183897,1704975041599,-777.40111,0.00038348,4]
[311183898,1704975041608,-150.91204938,0.00038422,7]
[311183899,1704975041618,-777.40111,0.00038448,6]
[311183900,1704975041627,-1852.34745427,0.00038491,2]
[311183901,1704975041636,-657.04217787,0.000385,2]
[311183902,1704975041645,-152.61705452,0.00038538,2]
[311183903,1704975041655,-777.40111,0.00038548,4]
[311183904,1704975041664,-151.0,0.0003855,2]
[311183905,1704975041674,-153.32,0.0003857,2]
[311183906,1704975041683,-6024.80989409,0.00038572,12]
[311183907,1704975041880,-777.40111,0.00038648,6]
[311183908,1704975041889,-150.91204938,0.00038655,7]
[311183909,1704975041898,-191.81915141,0.00038678,2]
[311183910,1704975041907,-280.70420003,0.00038685,4]
[311183911,1704975041917,-1482.24082852,0.00038686,2]
[311183912,1704975041927,-159.79,0.000387,3]
[311183913,1704975041937,-159.79,0.000387,3]
[311183914,1704975041947,-159.79,0.000387,3]
[311183915,1704975041956,-209.0,0.0003872,2]
[311183916,1704975041967,-210.0,0.0003872,2]
[311183917,1704975041978,-309.89539658,0.00038742,2]
[311183918,1704975041987,-777.40111,0.00038748,4]
[311183919,1704975042000,-153.84,0.00038763,2]
[311183920,1704975042010,-184.87968352,0.000388,24]
[311183921,1704975042020,-6816.49533736,0.000388,4]
[311183922,1704975042031,-150.2064584,0.00038812,2]
[311183923,1704975042040,-777.40111,0.00038848,6]
[311183924,1704975042049,-158.71511871,0.00038854,2]
[311183925,1704975042058,-150.31,0.00038868,2]
[311183926,1704975042067,-15580.20401733,0.00038876,7]
[311183927,1704975042077,-16380.95804688,0.00038876,7]
[311183928,1704975042089,-17217.194,0.00038876,7]
[311183929,1704975042102,-1135.91179,0.00038876,7]
[311183930,1704975042114,-9266.58414693,0.00038876,7]
[311183931,1704975042126,-1726.46668132,0.00038876,7]
[311183932,1704975042137,-5016.9720984,0.00038876,7]
[311183933,1704975042161,-18814.35629082,0.00038876,7]
[311183934,1704975042320,-4406.14723763,0.00038876,7]
[311183935,1704975042329,-3634.6636196,0.00038878,3]
[311183955,1704975042963,-723.25525563,0.00038878,3]
[311183957,1704975042974,-49055.52049007,0.00038878,3]
[311183959,1704975042986,-451.21780543,0.00038878,3]
[311183961,1704975042998,-2277.75955266,0.00038878,3]
[311183965,1704975043027,-2046.91811618,0.00038878,3]
[311183968,1704975043039,-1046.26574399,0.00038878,3]
[311183970,1704975043050,-480.95,0.00038878,3]
[311183972,1704975043062,-357.9828,0.00038878,3]
[311183977,1704975043106,-0.00181755,0.00038878,3]
[311183980,1704975043157,-1000.0,0.00037887,10]
[311183981,1704975043168,-3609.63733075,0.00038878,3]
[311183982,1704975043214,-16940.42505646,0.00038878,3]
[311183983,1704975043225,-7105.22678552,0.00038878,3]
[311183984,1704975043236,-4621.68306667,0.00038878,3]
[311183985,1704975043248,-374.72962927,0.00038878,3]
[311183986,1704975043260,-293.80853246,0.00038878,3]
[311183987,1704975043272,-948.4779212,0.00038878,3]
[311183988,1704975043338,-1576.93232196,0.00038878,3]
[311183989,1704975043348,-10502.76607941,0.000389,7]
[311183990,1704975043394,-11.85195764,0.000389,7]
[311183991,1704975043411,-1340.55421316,0.000389,7]
[311183992,1704975043423,-1039.9999,0.000389,7]
[311184023,1704975045973,-776.74012058,0.00038061,2]
[311184024,1704975046034,-223.25987942,0.00038061,2]
[311184025,1704975046044,-9083.03712058,0.000389,7]
[311184026,1704975046055,-2712.9618369,0.000389,7]
[311184030,1704975046236,-795.24,0.000389,7]
[311184031,1704975046248,-12431.73419353,0.000389,7]
[311184032,1704975046276,-11101.833,0.000389,7]
[311184033,1704975046295,-15975.86787418,0.000389,7]
[311184034,1704975046306,-3535.95299881,0.000389,7]
[311184035,1704975046318,-9213.35547089,0.000389,7]
[311184036,1704975046329,-9124.17861579,0.000389,7]
[311184037,1704975046338,-153.32,0.00038902,2]
[311184038,1704975046348,-777.40111,0.00038948,4]
[311184039,1704975046357,-205.0,0.00038951,13]
[311184040,1704975046367,-3513.33009869,0.00038957,12]
[311184041,1704975046378,-434.33153166,0.00038957,12]
[311184042,1704975046389,-1147.82935338,0.00038957,12]
[311184043,1704975046401,-583.19234476,0.00038957,12]
[311184044,1704975046412,-346.1265656,0.00038957,12]
[311184045,1704975046421,-95545.4558454,0.00038966,3]
[311184046,1704975046430,-1437.2804,0.00038976,2]
[311184047,1704975046440,-1768.44382124,0.00038978,2]
[311184048,1704975046449,-998.6648448,0.00038978,2]
[311184049,1704975046459,-476.42941272,0.00038978,2]
[311184050,1704975046468,-167.16425664,0.00038978,2]
[311184051,1704975046478,-281.73212903,0.0003898,2]
[311184052,1704975046487,-302.96537039,0.0003898,4]
[311184053,1704975046496,-150.31,0.0003899,2]
[311184054,1704975046505,-390.25082271,0.00038999,2]
[311184055,1704975046514,-205.99191317,0.00038999,2]
[311184056,1704975046524,-180.62960146,0.00038999,2]
[311184057,1704975046533,-270.94440218,0.00038999,2]
[311184058,1704975046542,-451.57400364,0.00038999,2]
[311184059,1704975046551,-4910.2503,0.00039,2]
[311184060,1704975046560,-1427.43973993,0.00039,2]
[311184061,1704975046570,-17758.5821026,0.00039,2]
[311184062,1704975046579,-2048.0,0.0003903,5]
[311184063,1704975046588,-1482.24082852,0.00039033,2]
[311184064,1704975046620,-777.40111,0.00039048,6]
[311184065,1704975046629,-152.61705452,0.00039058,2]
[311184066,1704975046638,-1146.15733334,0.0003906,2]
[311184067,1704975046647,-221.71463965,0.00039067,2]
[311184068,1704975046656,-55442.78902378,0.00039068,3]
[311184069,1704975046668,-600.23811888,0.00039068,3]
[311184070,1704975046678,-258.095,0.00039068,3]
[311184071,1704975046691,-1334.3606884,0.00039068,3]
[311184072,1704975046768,-531.911,0.00039068,3]
[311184073,1704975046812,-300.0,0.00039068,3]
[311184074,1704975046823,-4303.69554739,0.00039068,3]
[311184075,1704975046835,-353.86054689,0.00039068,3]
[311184076,1704975046889,-3054.23820503,0.00039068,3]
[311184077,1704975046900,-275.87166372,0.00039068,3]
[311184078,1704975046912,-1251.15326002,0.00039068,3]
[311184079,1704975046925,-2000.0,0.00039068,3]
[311184121,1704975444051,1200.0,0.00026,10]
[311184125,1704975502798,1166.66,0.00029028,20]
[311184128,1704975529078,855.86394758,0.00026,2]